fUST/lending_fUST_20260514
["ID","MTS","AMOUNT","RATE_DAILY","PERIOD"]
[422213472,1778709039000,-500.0,9.598e-05,2]
[422213459,1778709039000,-500.0,9.598e-05,2]
[422213492,1778709039000,-500.0,9.598e-05,2]
[422213457,1778709039000,-500.0,9.598e-05,2]
[422213474,1778709039000,-500.0,9.598e-05,2]
[422213466,1778709039000,-500.0,9.598e-05,2]
[422213514,1778709039000,-500.0,9.598e-05,2]
[422213476,1778709039000,-500.0,9.598e-05,2]
[422213463,1778709039000,-500.0,9.598e-05,2]
[422213480,1778709039000,-500.0,9.598e-05,2]
[422213478,1778709039000,-500.0,9.598e-05,2]
[422213483,1778709039000,-500.0,9.598e-05,2]
[422213481,1778709039000,-500.0,9.598e-05,2]
[422213484,1778709039000,-500.0,9.598e-05,2]
[422213482,1778709039000,-500.0,9.598e-05,2]
[422213491,1778709039000,-500.0,9.598e-05,2]
[422213485,1778709039000,-500.0,9.598e-05,2]
[422213468,1778709039000,-500.0,9.598e-05,2]
[422213520,1778709039000,-9155.5788578,9.808e-05,2]
[422213504,1778709039000,-500.0,9.598e-05,2]
[422213523,1778709039000,-644.79446246,9.818e-05,2]
[422213556,1778709039000,-500.0,0.00010136,2]
[422213566,1778709039000,-500.0,0.00010136,2]
[422213559,1778709039000,-151.5,0.00010136,2]
[422213557,1778709039000,-500.0,0.00010136,2]
[422213567,1778709039000,-500.0,0.00010136,2]
[422213558,1778709039000,-500.0,0.00010136,2]
[422213560,1778709039000,-276.62707154,0.00010136,2]
[422213561,1778709039000,-151.5,0.00010136,2]
[422213565,1778709039000,-278.61840584,0.00010136,2]
[422213563,1778709039000,-151.5,0.00010136,2]
[422213562,1778709039000,-151.5,0.00010136,2]
[422213564,1778709039000,-175.79440304,0.00010136,2]
[422213569,1778709039000,-500.0,0.00010136,2]
[422213555,1778709039000,-500.0,0.00010136,2]
[422213579,1778709039000,-500.0,0.00010136,2]
[422213571,1778709039000,-500.0,0.00010136,2]
[422213575,1778709039000,-500.0,0.00010136,2]
[422213573,1778709039000,-597.84421131,0.00010136,2]
[422213574,1778709039000,-500.0,0.00010136,2]
[422213572,1778709039000,-500.0,0.00010136,2]
[422213568,1778709039000,-500.0,0.00010136,2]
[422213576,1778709039000,-500.0,0.00010136,2]
[422213577,1778709039000,-500.0,0.00010136,2]
[422213570,1778709039000,-500.0,0.00010136,2]
[422213578,1778709039000,-500.0,0.00010136,2]
[422213581,1778709039000,-202.02008808,0.00010136,2]
[422213583,1778709039000,-151.5,0.00010136,2]
[422213515,1778709039000,-500.0,9.598e-05,2]
[422213580,1778709039000,-500.0,0.00010136,2]
[422213551,1778709039000,-500.0,0.00010136,2]
[422213582,1778709039000,-500.0,0.00010136,2]
[422213552,1778709039000,-500.0,0.00010136,2]
[422213549,1778709039000,-151.5,0.00010136,2]
[422213524,1778709039000,-500.0,9.854e-05,2]
[422213527,1778709039000,-719.04747942,9.983e-05,2]
[422213529,1778709039000,-34197.24300337,0.0001,2]
[422213530,1778709039000,-2746.99702353,0.0001,2]
[422213526,1778709039000,-693.3919763,9.928e-05,2]
[422213528,1778709039000,-500.0,9.99e-05,2]
[422213532,1778709039000,-16682.30798224,0.0001,2]
[422213542,1778709039000,-500.0,0.00010059,2]
[422213531,1778709039000,-51489.77985242,0.0001,2]
[422213535,1778709039000,-151.0,0.00010005,2]
[422213536,1778709039000,-160.0,0.00010005,2]
[422213533,1778709039000,-151.0,0.0001,2]
[422213540,1778709039000,-223.83282431,0.00010005,2]
[422213525,1778709039000,-668.65185757,9.873e-05,2]
[422213537,1778709039000,-160.0,0.00010005,2]
[422213541,1778709039000,-745.65223616,0.00010038,2]
[422213547,1778709039000,-500.0,0.00010128,2]
[422213543,1778709039000,-500.0,0.00010059,2]
[422213550,1778709039000,-258.1649191,0.00010136,2]
[422213548,1778709039000,-151.5,0.00010136,2]
[422213545,1778709039000,-557.5788265,0.00010091,2]
[422213546,1778709039000,-773.2413689,0.00010093,2]
[422213544,1778709039000,-526.12409326,0.00010059,2]
[422213539,1778709039000,-160.0,0.00010005,2]
[422213538,1778709039000,-160.0,0.00010005,2]
[422213534,1778709039000,-5564.48632435,0.00010005,2]
[422213553,1778709039000,-500.0,0.00010136,2]
[422213554,1778709039000,-323.7223841,0.00010136,2]
[422213627,1778709040000,-156.0,0.00010504,2]
[422213629,1778709040000,-166.0,0.00010504,2]
[422213624,1778709040000,-166.0,0.00010504,2]
[422213623,1778709040000,-166.0,0.00010504,2]
[422213615,1778709040000,-411.70276441,0.00010415,2]
[422213621,1778709040000,-166.0,0.00010504,2]
[422213620,1778709040000,-166.0,0.00010504,2]
[422213619,1778709040000,-8603.96395345,0.000105,2]
[422213616,1778709040000,-551.48616786,0.00010419,2]
[422213630,1778709040000,-166.0,0.00010504,2]
[422213613,1778709040000,-793.0,0.000104,2]
[422213622,1778709040000,-166.0,0.00010504,2]
[422213628,1778709040000,-166.0,0.00010504,2]
[422213638,1778709040000,-156.0,0.00010504,2]
[422213626,1778709040000,-156.0,0.00010504,2]
[422213632,1778709040000,-166.0,0.00010504,2]
[422213633,1778709040000,-166.0,0.00010504,2]
[422213643,1778709040000,-156.0,0.00010504,2]
[422213642,1778709040000,-156.0,0.00010504,2]
[422213637,1778709040000,-278.61022012,0.00010504,2]
[422213635,1778709040000,-156.0,0.00010504,2]
[422213634,1778709040000,-172.0,0.00010504,2]
[422213631,1778709040000,-166.0,0.00010504,2]
[422213639,1778709040000,-156.0,0.00010504,2]
[422213636,1778709040000,-156.0,0.00010504,2]
[422213612,1778709040000,-2570.02197276,0.00010386,2]
[422213641,1778709040000,-156.0,0.00010504,2]
[422213625,1778709040000,-156.0,0.00010504,2]
[422213614,1778709040000,-500.0,0.00010402,2]
[422213599,1778709040000,-500.0,0.00010136,2]
[422213610,1778709040000,-894.19061326,0.00010313,2]
[422213640,1778709040000,-156.0,0.00010504,2]
[422213585,1778709040000,-500.0,0.00010136,2]
[422213584,1778709040000,-500.0,0.00010136,2]
[422213586,1778709040000,-154.55979225,0.00010136,2]
[422213590,1778709040000,-500.0,0.00010136,2]
[422213593,1778709040000,-500.0,0.00010136,2]
[422213591,1778709040000,-508.3557707,0.00010136,2]
[422213592,1778709040000,-500.0,0.00010136,2]
[422213588,1778709040000,-500.0,0.00010136,2]
[422213589,1778709040000,-151.5,0.00010136,2]
[422213587,1778709040000,-590.31882123,0.00010136,2]
[422213595,1778709040000,-500.0,0.00010136,2]
[422213605,1778709040000,-162.97,0.00010174,2]
[422213611,1778709040000,-927.27566595,0.00010368,2]
[422213594,1778709040000,-500.0,0.00010136,2]
[422213597,1778709040000,-500.0,0.00010136,2]
[422213600,1778709040000,-500.0,0.00010136,2]
[422213598,1778709040000,-500.0,0.00010136,2]
[422213602,1778709040000,-161.28,0.00010148,2]
[422213603,1778709040000,-801.85129955,0.00010148,2]
[422213601,1778709040000,-600.68132839,0.00010136,2]
[422213604,1778709040000,-158.91,0.00010152,2]
[422213609,1778709040000,-862.28603014,0.00010258,2]
[422213607,1778709040000,-831.51979763,0.00010203,2]
[422213606,1778709040000,-159.3,0.00010179,2]
[422213608,1778709040000,-720.0,0.00010237,2]
[422213617,1778709040000,-961.58486559,0.00010423,2]
[422213618,1778709040000,-997.16350561,0.00010478,2]
[422213596,1778709040000,-500.0,0.00010136,2]
[422213644,1778709040000,-160.38454964,0.00010504,2]
[422213697,1778709040000,-775.57428312,0.00010504,2]
[422213655,1778709040000,-650.0,0.00010504,2]
[422213680,1778709040000,-650.0,0.00010504,2]
[422213674,1778709040000,-650.0,0.00010504,2]
[422213678,1778709040000,-650.0,0.00010504,2]
[422213683,1778709040000,-650.0,0.00010504,2]
[422213682,1778709040000,-650.0,0.00010504,2]
[422213684,1778709040000,-650.0,0.00010504,2]
[422213688,1778709040000,-650.0,0.00010504,2]
[422213690,1778709040000,-650.0,0.00010504,2]
[422213689,1778709040000,-650.0,0.00010504,2]
[422213687,1778709040000,-650.0,0.00010504,2]
[422213686,1778709040000,-650.0,0.00010504,2]
[422213685,1778709040000,-650.0,0.00010504,2]
[422213692,1778709040000,-650.0,0.00010504,2]
[422213677,1778709040000,-650.0,0.00010504,2]
[422213691,1778709040000,-650.0,0.00010504,2]
[422213702,1778709040000,-167.0,0.00010504,2]
[422213704,1778709040000,-169.39236129,0.00010504,2]
[422213703,1778709040000,-167.0,0.00010504,2]
[422213696,1778709040000,-650.0,0.00010504,2]
[422213700,1778709040000,-167.0,0.00010504,2]
[422213695,1778709040000,-650.0,0.00010504,2]
[422213694,1778709040000,-650.0,0.00010504,2]
[422213645,1778709040000,-650.0,0.00010504,2]
[422213693,1778709040000,-650.0,0.00010504,2]
[422213701,1778709040000,-167.0,0.00010504,2]
[422213705,1778709040000,-889.41868863,0.00010515,2]
[422213706,1778709040000,-431.20297533,0.00010547,2]
[422213707,1778709040000,-160.0,0.0001058,2]
[422213699,1778709040000,-167.0,0.00010504,2]
[422213675,1778709040000,-650.0,0.00010504,2]
[422213698,1778709040000,-167.0,0.00010504,2]
[422213676,1778709040000,-650.0,0.00010504,2]
[422213652,1778709040000,-650.0,0.00010504,2]
[422213654,1778709040000,-650.0,0.00010504,2]
[422213648,1778709040000,-650.0,0.00010504,2]
[422213656,1778709040000,-650.0,0.00010504,2]
[422213647,1778709040000,-650.0,0.00010504,2]
[422213646,1778709040000,-650.0,0.00010504,2]
[422213651,1778709040000,-650.0,0.00010504,2]
[422213653,1778709040000,-650.0,0.00010504,2]
[422213650,1778709040000,-650.0,0.00010504,2]
[422213668,1778709040000,-650.0,0.00010504,2]
[422213669,1778709040000,-650.0,0.00010504,2]
[422213649,1778709040000,-650.0,0.00010504,2]
[422213657,1778709040000,-650.0,0.00010504,2]
[422213658,1778709040000,-650.0,0.00010504,2]
[422213663,1778709040000,-650.0,0.00010504,2]
[422213681,1778709040000,-650.0,0.00010504,2]
[422213672,1778709040000,-650.0,0.00010504,2]
[422213659,1778709040000,-650.0,0.00010504,2]
[422213671,1778709040000,-650.0,0.00010504,2]
[422213670,1778709040000,-650.0,0.00010504,2]
[422213665,1778709040000,-650.0,0.00010504,2]
[422213679,1778709040000,-650.0,0.00010504,2]
[422213666,1778709040000,-650.0,0.00010504,2]
[422213661,1778709040000,-650.0,0.00010504,2]
[422213664,1778709040000,-650.0,0.00010504,2]
[422213662,1778709040000,-650.0,0.00010504,2]
[422213660,1778709040000,-650.0,0.00010504,2]
[422213667,1778709040000,-650.0,0.00010504,2]
[422213673,1778709040000,-650.0,0.00010504,2]
[422213708,1778709041000,-160.0,0.0001058,2]
[422213712,1778709041000,-826148.31952838,0.00010598,2]
[422213710,1778709041000,-161.63868993,0.00010586,2]
[422213711,1778709041000,-160.0,0.00010586,2]
[422213709,1778709041000,-160.0,0.0001058,2]
[422213730,1778709043000,-5000.0,9.502e-05,2]
[422213733,1778709043000,-3422.40111646,0.00010598,2]
[422213731,1778709043000,-1713.34798184,0.00010386,2]
[422213732,1778709043000,-1165.4098279,0.00010598,2]
[422213738,1778709046000,-42999.0708418,0.00010598,2]
[422213739,1778709046000,-9184.83519259,0.00010598,2]
[422213740,1778709046000,-8883.82580481,0.00010598,2]
[422213799,1778710232000,-5000.0,7.301e-05,2]
[422213801,1778710232000,-300.0,7.374e-05,2]
[422213796,1778710232000,-2817.85544935,7.228e-05,2]
[422213797,1778710232000,-1544.22284037,7.228e-05,2]
[422213802,1778710232000,-1053.91708641,7.375e-05,2]
[422213816,1778710232000,-500.0,8.824e-05,2]
[422213818,1778710232000,-500.0,8.824e-05,2]
[422213820,1778710232000,-500.0,8.824e-05,2]
[422213811,1778710232000,-1696.6826729,8.219e-05,2]
[422213794,1778710232000,-637.92171028,7.228e-05,2]
[422213808,1778710232000,-420.0,8.111e-05,2]
[422213813,1778710232000,-717.24,8.648e-05,2]
[422213821,1778710232000,-500.0,8.824e-05,2]
[422213806,1778710232000,-6810.0306589,7.6e-05,2]
[422213823,1778710232000,-500.0,8.824e-05,2]
[422213825,1778710232000,-500.0,8.824e-05,2]
[422213814,1778710232000,-500.0,8.824e-05,2]
[422213827,1778710232000,-239.62129068,8.824e-05,2]
[422213829,1778710232000,-12223.96562383,8.825e-05,2]
[422213804,1778710232000,-370.33639303,7.487e-05,2]
[422213866,1778710238000,-1413535.65280814,8.825e-05,2]
[422213867,1778710238000,-17866.49509186,8.825e-05,2]
[422213865,1778710238000,-5000.0,7.156e-05,2]
[422214042,1778710240000,-5257.59999636,8.825e-05,2]
[422214050,1778710243000,-5000.0,8.737e-05,2]
[422214051,1778710243000,-10370.1178605,8.825e-05,2]
[422214133,1778711432000,-300.0,9.204e-05,2]
[422214099,1778711432000,-5000.0,7.147e-05,2]
[422214100,1778711432000,-1200.0,7.218e-05,2]
[422214104,1778711432000,-300.0,7.291e-05,2]
[422214102,1778711432000,-5000.0,7.219e-05,2]
[422214116,1778711432000,-235.22118832,8.966e-05,2]
[422214108,1778711432000,-376.68955192,7.403e-05,2]
[422214110,1778711432000,-200.0,7.579e-05,2]
[422214106,1778711432000,-279.61116637,7.292e-05,2]
[422214112,1778711432000,-300.0,8.02e-05,2]
[422214114,1778711432000,-210.23432836,8.637e-05,2]
[422214136,1778711432000,-300.0,9.204e-05,2]
[422214131,1778711432000,-300.0,9.204e-05,2]
[422214140,1778711432000,-300.0,9.204e-05,2]
[422214161,1778711432000,-600.0,9.204e-05,2]
[422214126,1778711432000,-300.0,9.204e-05,2]
[422214124,1778711432000,-300.0,9.204e-05,2]
[422214163,1778711432000,-7725.94963141,9.204e-05,2]
[422214169,1778711432000,-1296.03853808,9.224e-05,2]
[422214165,1778711432000,-14989.59413362,9.224e-05,2]
[422214159,1778711432000,-300.0,9.204e-05,2]
[422214155,1778711432000,-300.0,9.204e-05,2]
[422214157,1778711432000,-300.0,9.204e-05,2]
[422214122,1778711432000,-300.0,9.204e-05,2]
[422214118,1778711432000,-300.0,9.204e-05,2]
[422214143,1778711432000,-300.0,9.204e-05,2]
[422214128,1778711432000,-300.0,9.204e-05,2]
[422214120,1778711432000,-300.0,9.204e-05,2]
[422214146,1778711432000,-300.0,9.204e-05,2]
[422214266,1778711438000,-2312.95952989,9.425e-05,2]
[422214264,1778711438000,-444.49367126,9.403e-05,2]
[422214268,1778711438000,-812.68022265,9.425e-05,2]
[422214262,1778711438000,-573.792,9.324e-05,2]
[422214260,1778711438000,-270.11442017,9.224e-05,2]
[422214257,1778711438000,-1310.748,9.224e-05,2]
[422214272,1778711438000,-735.45569589,9.48e-05,2]
[422214270,1778711438000,-3072.7991114,9.475e-05,2]
[422214392,1778711441000,-408.325,9.132e-05,2]
[422214423,1778711446000,-500.0,9.598e-05,2]
[422214416,1778711446000,-884.37344511,9.48e-05,2]
[422214415,1778711446000,-2577.07353554,9.132e-05,2]
[422214417,1778711446000,-1934.28793876,9.48e-05,2]
[422214418,1778711446000,-152.0,9.49e-05,7]
[422214424,1778711446000,-500.0,9.598e-05,2]
[422214419,1778711446000,-500.0,9.598e-05,2]
[422214421,1778711446000,-500.0,9.598e-05,2]
[422214420,1778711446000,-500.0,9.598e-05,2]
[422214422,1778711446000,-500.0,9.598e-05,2]
[422214425,1778711446000,-500.0,9.598e-05,2]
[422214427,1778711446000,-500.0,9.598e-05,2]
[422214426,1778711446000,-500.0,9.598e-05,2]
[422214428,1778711446000,-500.0,9.598e-05,2]
[422214429,1778711446000,-500.0,9.598e-05,2]
[422214454,1778711447000,-719.04747942,0.00010168,2]
[422214453,1778711447000,-693.3919763,0.00010113,2]
[422214455,1778711447000,-745.65223616,0.00010223,2]
[422214458,1778711447000,-773.2413689,0.00010278,2]
[422214459,1778711447000,-296.42644705,0.000103,2]
[422214457,1778711447000,-640.12772815,0.00010276,2]
[422214456,1778711447000,-500.0,0.00010276,2]
[422214476,1778711447000,-801.85129955,0.00010333,2]
[422214477,1778711447000,-1142.23198789,0.00010386,2]
[422214479,1778711447000,-351.31888415,0.000104,2]
[422214475,1778711447000,-496.57355295,0.000103,2]
[422214478,1778711447000,-184.9419946,0.000104,2]
[422214452,1778711447000,-668.65185757,0.00010058,2]
[422214481,1778711447000,-295.85992097,0.000104,2]
[422214483,1778711447000,-207.07204241,0.000104,2]
[422214493,1778711447000,-500.0,0.00010499,2]
[422214495,1778711447000,-245.52879096,0.00010499,2]
[422214486,1778711447000,-160.0,0.00010481,2]
[422214484,1778711447000,-161.63868993,0.00010481,2]
[422214480,1778711447000,-240.40095778,0.000104,2]
[422214451,1778711447000,-644.79446246,0.00010003,2]
[422214434,1778711447000,-537.6845,9.728e-05,2]
[422214442,1778711447000,-300.0,9.789e-05,2]
[422214437,1778711447000,-300.0,9.789e-05,2]
[422214433,1778711447000,-537.6845,9.728e-05,2]
[422214494,1778711447000,-500.0,0.00010499,2]
[422214432,1778711447000,-162.380719,9.728e-05,2]
[422214431,1778711447000,-500.0,9.728e-05,2]
[422214430,1778711447000,-500.0,9.621e-05,2]
[422214436,1778711447000,-300.0,9.789e-05,2]
[422214435,1778711447000,-557.5788265,9.783e-05,2]
[422214438,1778711447000,-300.0,9.789e-05,2]
[422214440,1778711447000,-300.0,9.789e-05,2]
[422214439,1778711447000,-300.0,9.789e-05,2]
[422214449,1778711447000,-6682.84235341,0.0001,2]
[422214441,1778711447000,-300.0,9.789e-05,2]
[422214444,1778711447000,-599.60298507,9.893e-05,2]
[422214446,1778711447000,-2205.94467145,9.979e-05,2]
[422214443,1778711447000,-578.20924308,9.838e-05,2]
[422214445,1778711447000,-621.78829552,9.948e-05,2]
[422214448,1778711447000,-1645.1642466,9.979e-05,2]
[422214447,1778711447000,-4958.41213524,9.979e-05,2]
[422214450,1778711447000,-500.0,0.00010002,2]
[422214482,1778711447000,-399.8473651,0.000104,2]
[422214501,1778711447000,-500.0,0.00010499,2]
[422214487,1778711447000,-160.0,0.00010481,2]
[422214512,1778711447000,-500.0,0.00010499,2]
[422214519,1778711447000,-500.0,0.00010499,2]
[422214510,1778711447000,-500.0,0.00010499,2]
[422214520,1778711447000,-500.0,0.00010499,2]
[422214514,1778711447000,-500.0,0.00010499,2]
[422214517,1778711447000,-500.0,0.00010499,2]
[422214485,1778711447000,-160.0,0.00010481,2]
[422214518,1778711447000,-375.43431086,0.00010499,2]
[422214524,1778711447000,-190.49764056,0.00010504,2]
[422214516,1778711447000,-500.0,0.00010499,2]
[422214534,1778711447000,-31321.84848189,0.00010596,2]
[422214526,1778711447000,-1714.47876502,0.00010504,2]
[422214525,1778711447000,-761.99056223,0.00010504,2]
[422214532,1778711447000,-2498.7152073,0.00010583,2]
[422214530,1778711447000,-9325.05000297,0.00010504,2]
[422214527,1778711447000,-3047.96224893,0.00010504,2]
[422214529,1778711447000,-6857.9150601,0.00010504,2]
[422214528,1778711447000,-4762.44101396,0.00010504,2]
[422214533,1778711447000,-757.46221645,0.00010596,2]
[422214531,1778711447000,-500.0,0.0001055,2]
[422214523,1778711447000,-7743.56755806,0.000105,2]
[422214521,1778711447000,-500.0,0.00010499,2]
[422214522,1778711447000,-171.70243008,0.000105,2]
[422214515,1778711447000,-500.0,0.00010499,2]
[422214488,1778711447000,-171.7024301,0.00010483,2]
[422214511,1778711447000,-495.87416038,0.00010499,2]
[422214491,1778711447000,-500.0,0.00010499,2]
[422214492,1778711447000,-500.0,0.00010499,2]
[422214489,1778711447000,-171.70243008,0.00010492,2]
[422214497,1778711447000,-513.13082125,0.00010499,2]
[422214498,1778711447000,-168.9517238,0.00010499,2]
[422214507,1778711447000,-500.0,0.00010499,2]
[422214508,1778711447000,-500.0,0.00010499,2]
[422214490,1778711447000,-500.0,0.00010499,2]
[422214509,1778711447000,-500.0,0.00010499,2]
[422214513,1778711447000,-500.0,0.00010499,2]
[422214499,1778711447000,-292.70063837,0.00010499,2]
[422214500,1778711447000,-500.0,0.00010499,2]
[422214502,1778711447000,-500.0,0.00010499,2]
[422214504,1778711447000,-500.0,0.00010499,2]
[422214505,1778711447000,-500.0,0.00010499,2]
[422214503,1778711447000,-500.0,0.00010499,2]
[422214506,1778711447000,-500.0,0.00010499,2]
[422214496,1778711447000,-178.46681903,0.00010499,2]
[422214535,1778711492000,-1001.09247775,9.594e-05,2]
[422214536,1778711636000,239.31,8.758e-05,30]
[422214543,1778712574000,152.0,8.76e-05,30]
[422214638,1778712639000,-5000.0,8.093e-05,2]
[422214637,1778712639000,-5000.0,8.012e-05,2]
[422214641,1778712639000,-10174.54588019,9e-05,2]
[422214639,1778712639000,-360.26588745,8.217e-05,2]
[422214642,1778712639000,-12832.95004318,9.122e-05,2]
[422214640,1778712639000,-459.033,8.941e-05,2]
[422214735,1778712641000,-744.24204284,9.122e-05,2]
[422214727,1778712641000,-1000.0,9.122e-05,2]
[422214761,1778712644000,-841.45616995,9.122e-05,2]
[422214763,1778712644000,-500.0,9.122e-05,2]
[422214762,1778712644000,-1248.36129281,9.122e-05,2]
[422214764,1778712644000,-199.3981268,9.122e-05,2]
[422214766,1778712644000,-370.14128626,9.122e-05,2]
[422214767,1778712644000,-512.79044214,9.122e-05,2]
[422214769,1778712644000,-352.38848599,9.122e-05,2]
[422214765,1778712644000,-500.0,9.122e-05,2]
[422214771,1778712644000,-500.0,9.122e-05,2]
[422214777,1778712644000,-296.7260095,9.122e-05,2]
[422214775,1778712644000,-772.30438043,9.122e-05,2]
[422214776,1778712644000,-772.30438043,9.122e-05,2]
[422214768,1778712644000,-500.0,9.122e-05,2]
[422214773,1778712644000,-772.30438043,9.122e-05,2]
[422214772,1778712644000,-280.9136162,9.122e-05,2]
[422214774,1778712644000,-772.30438043,9.122e-05,2]
[422214813,1778712647000,-772.30438043,9.122e-05,2]
[422214811,1778712647000,-3998.90752225,9.031e-05,2]
[422214812,1778712647000,-475.57837093,9.122e-05,2]
[422214814,1778712647000,-772.30438043,9.122e-05,2]
[422214816,1778712647000,-772.30438043,9.122e-05,2]
[422214817,1778712647000,-772.30438043,9.122e-05,2]
[422214819,1778712647000,-772.30438043,9.122e-05,2]
[422214818,1778712647000,-772.30438043,9.122e-05,2]
[422214827,1778712647000,-772.30438043,9.122e-05,2]
[422214823,1778712647000,-772.30438043,9.122e-05,2]
[422214821,1778712647000,-772.30438043,9.122e-05,2]
[422214825,1778712647000,-772.30438043,9.122e-05,2]
[422214815,1778712647000,-772.30438043,9.122e-05,2]
[422214828,1778712647000,-772.30438043,9.122e-05,2]
[422214837,1778712647000,-787.75046803,9.122e-05,2]
[422214824,1778712647000,-772.30438043,9.122e-05,2]
[422214834,1778712647000,-787.75046803,9.122e-05,2]
[422214835,1778712647000,-787.75046803,9.122e-05,2]
[422214836,1778712647000,-787.75046803,9.122e-05,2]
[422214833,1778712647000,-787.75046803,9.122e-05,2]
[422214838,1778712647000,-224850.03009454,9.123e-05,2]
[422214830,1778712647000,-787.75046803,9.122e-05,2]
[422214831,1778712647000,-787.75046803,9.122e-05,2]
[422214829,1778712647000,-787.75046803,9.122e-05,2]
[422214826,1778712647000,-772.30438043,9.122e-05,2]
[422214822,1778712647000,-772.30438043,9.122e-05,2]
[422214832,1778712647000,-787.75046803,9.122e-05,2]
[422214854,1778713831000,-304.53262566,7.276e-05,2]
[422215051,1778713837000,-360.5428193,7.276e-05,2]
[422215111,1778713838000,-506.38811256,8.92e-05,2]
[422215113,1778713838000,-500.0,8.92e-05,2]
[422215100,1778713838000,-500.0,8.92e-05,2]
[422215114,1778713838000,-214.7752677,8.92e-05,2]
[422215116,1778713838000,-500.0,8.92e-05,2]
[422215106,1778713838000,-500.0,8.92e-05,2]
[422215117,1778713838000,-500.0,8.92e-05,2]
[422215129,1778713838000,-523.57983814,8.92e-05,2]
[422215108,1778713838000,-433.96194129,8.92e-05,2]
[422215102,1778713838000,-500.0,8.92e-05,2]
[422215115,1778713838000,-500.0,8.92e-05,2]
[422215119,1778713838000,-500.0,8.92e-05,2]
[422215130,1778713838000,-500.0,8.92e-05,2]
[422215118,1778713838000,-500.0,8.92e-05,2]
[422215110,1778713838000,-445.9208337,8.92e-05,2]
[422215104,1778713838000,-500.0,8.92e-05,2]
[422215112,1778713838000,-500.0,8.92e-05,2]
[422215065,1778713838000,-4334.92455504,7.276e-05,2]
[422215095,1778713838000,-500.0,8.92e-05,2]
[422215120,1778713838000,-500.0,8.92e-05,2]
[422215069,1778713838000,-1200.0,7.349e-05,2]
[422215067,1778713838000,-359.62212188,7.313e-05,2]
[422215073,1778713838000,-300.0,8.919e-05,2]
[422215084,1778713838000,-500.0,8.92e-05,2]
[422215086,1778713838000,-500.0,8.92e-05,2]
[422215088,1778713838000,-500.0,8.92e-05,2]
[422215090,1778713838000,-212.53501043,8.92e-05,2]
[422215079,1778713838000,-300.0,8.919e-05,2]
[422215092,1778713838000,-500.0,8.92e-05,2]
[422215082,1778713838000,-1990.81549655,8.92e-05,2]
[422215078,1778713838000,-300.0,8.919e-05,2]
[422215076,1778713838000,-153.0,8.919e-05,2]
[422215081,1778713838000,-500.0,8.92e-05,2]
[422215096,1778713838000,-173.17095875,8.92e-05,2]
[422215099,1778713838000,-500.0,8.92e-05,2]
[422215071,1778713838000,-4271.09381704,7.35e-05,2]
[422215123,1778713838000,-500.0,8.92e-05,2]
[422215121,1778713838000,-500.0,8.92e-05,2]
[422215146,1778713838000,-819.36440107,8.92e-05,2]
[422215150,1778713838000,-500.0,8.92e-05,2]
[422215148,1778713838000,-819.36440107,8.92e-05,2]
[422215154,1778713838000,-814.68231878,8.92e-05,2]
[422215152,1778713838000,-814.68231878,8.92e-05,2]
[422215151,1778713838000,-819.36440107,8.92e-05,2]
[422215149,1778713838000,-819.36440107,8.92e-05,2]
[422215147,1778713838000,-819.36440107,8.92e-05,2]
[422215153,1778713838000,-814.68231878,8.92e-05,2]
[422215156,1778713838000,-814.68231878,8.92e-05,2]
[422215157,1778713838000,-814.68231878,8.92e-05,2]
[422215160,1778713838000,-648.94216788,8.921e-05,2]
[422215161,1778713838000,-4086.83690465,8.921e-05,2]
[422215158,1778713838000,-814.68231878,8.92e-05,2]
[422215159,1778713838000,-462488.34858935,8.921e-05,2]
[422215124,1778713838000,-500.0,8.92e-05,2]
[422215155,1778713838000,-814.68231878,8.92e-05,2]
[422215145,1778713838000,-819.36440107,8.92e-05,2]
[422215134,1778713838000,-500.0,8.92e-05,2]